[Event "*** Titled Tuesday Blitz"]
[Site "Chess.com"]
[Date "2019.03.05"]
[Round "3"]
[White "mouseWLZ"]
[Black "Shant_Sargsyan"]
[Result "0-1"]
[WhiteElo "2467"]
[BlackElo "2918"]
[TimeControl "180+2"]
[EndTime "13:42:58 PST"]
[Termination "Shant_Sargsyan won by resignation"]

1. e4 {[%clk 0:03:01.9]} 1... c5 {[%clk 0:03:00.4]} 2. Nf3 {[%clk 0:03:00.3]}
2... e6 {[%clk 0:03:01.8]} 3. d4 {[%clk 0:03:01.2]} 3... cxd4 {[%clk 0:03:03.7]}
4. Nxd4 {[%clk 0:03:03]} 4... Nf6 {[%clk 0:03:05.5]} 5. Nc3 {[%clk 0:03:03.8]}
5... Nc6 {[%clk 0:03:07.1]} 6. Ndb5 {[%clk 0:03:05.1]} 6... Bb4 {[%clk
0:03:07.9]} 7. a3 {[%clk 0:03:04.3]} 7... Bxc3+ {[%clk 0:03:09.3]} 8. Nxc3
{[%clk 0:03:05.9]} 8... d5 {[%clk 0:03:11.2]} 9. Bd3 {[%clk 0:03:07.6]} 9... O-O
{[%clk 0:03:11.9]} 10. O-O {[%clk 0:03:07.8]} 10... d4 {[%clk 0:03:12.7]} 11.
Ne2 {[%clk 0:03:08.5]} 11... e5 {[%clk 0:03:14.3]} 12. Bg5 {[%clk 0:03:07.8]}
12... h6 {[%clk 0:03:15.6]} 13. Bh4 {[%clk 0:03:08.3]} 13... g5 {[%clk
0:03:11.8]} 14. Bg3 {[%clk 0:03:09.4]} 14... Be6 {[%clk 0:03:02.1]} 15. h4
{[%clk 0:03:08.1]} 15... Kg7 {[%clk 0:02:59.4]} 16. Bb5 {[%clk 0:02:53]} 16...
Nd7 {[%clk 0:02:56.8]} 17. c3 {[%clk 0:02:46.1]} 17... dxc3 {[%clk 0:02:50.7]}
18. bxc3 {[%clk 0:02:47.1]} 18... Rc8 {[%clk 0:02:47.5]} 19. Rb1 {[%clk
0:02:28.5]} 19... b6 {[%clk 0:02:44.5]} 20. Qd6 {[%clk 0:02:21.4]} 20... Qc7
{[%clk 0:02:45]} 21. Rbd1 {[%clk 0:02:18.9]} 21... Rfe8 {[%clk 0:02:36.2]} 22.
hxg5 {[%clk 0:02:08.2]} 22... hxg5 {[%clk 0:02:37.2]} 23. Bxc6 {[%clk
0:02:08.1]} 23... Qxc6 {[%clk 0:02:38.3]} 24. Bxe5+ {[%clk 0:02:09.4]} 24... Kg6
{[%clk 0:02:33.4]} 25. Ng3 {[%clk 0:01:58]} 25... Qxd6 {[%clk 0:02:33.8]} 26.
Bxd6 {[%clk 0:01:55.8]} 26... Rxc3 {[%clk 0:02:34.5]} 27. Rfe1 {[%clk 0:01:48]}
27... Nc5 {[%clk 0:02:30.1]} 28. Rc1 {[%clk 0:01:35.2]} 28... Rxc1 {[%clk
0:02:21.6]} 29. Rxc1 {[%clk 0:01:37.1]} 29... Rc8 {[%clk 0:02:23.3]} 30. f3
{[%clk 0:01:31]} 30... Rc6 {[%clk 0:02:21.5]} 31. e5 {[%clk 0:01:24.7]} 31...
Bd5 {[%clk 0:02:11.5]} 32. Ne2 {[%clk 0:01:16.8]} 32... Ne6 {[%clk 0:02:10.6]}
33. Rd1 {[%clk 0:01:14.3]} 33... Bb3 {[%clk 0:02:09.4]} 34. Nd4 {[%clk
0:00:58.2]} 34... Nxd4 {[%clk 0:01:56.8]} 35. Rxd4 {[%clk 0:00:58.7]} 35... Be6
{[%clk 0:01:58.1]} 36. Rd2 {[%clk 0:00:57.1]} 36... a5 {[%clk 0:01:59.4]} 37.
Rb2 {[%clk 0:00:57.4]} 37... Bc4 {[%clk 0:01:59.5]} 38. Kf2 {[%clk 0:00:57.2]}
38... b5 {[%clk 0:02:01]} 39. Rd2 {[%clk 0:00:58.2]} 39... Be6 {[%clk
0:02:01.5]} 40. Ke3 {[%clk 0:00:57.9]} 40... Rc3+ {[%clk 0:01:59.4]} 41. Kd4
{[%clk 0:00:58.4]} 41... Rc4+ {[%clk 0:01:59.1]} 42. Ke3 {[%clk 0:00:59.6]}
42... g4 {[%clk 0:02:01]} 43. Rb2 {[%clk 0:00:56.7]} 43... Bd7 {[%clk
0:01:55.2]} 44. Kf2 {[%clk 0:00:46.9]} 44... Kf5 {[%clk 0:01:56.9]} 45. Re2
{[%clk 0:00:45.3]} 45... Bc6 {[%clk 0:01:58.1]} 46. Kg3 {[%clk 0:00:45]} 46...
gxf3 {[%clk 0:01:59.2]} 47. gxf3 {[%clk 0:00:46.2]} 47... Rc3 {[%clk 0:02:00.1]}
48. Rf2 {[%clk 0:00:47.7]} 48... Rd3 {[%clk 0:01:55.3]} 49. Rc2 {[%clk
0:00:16.7]} 49... Rxf3+ {[%clk 0:01:52.3]} 50. Kh2 {[%clk 0:00:18.3]} 50... Bd5
{[%clk 0:01:48.6]} 51. Rc5 {[%clk 0:00:18.4]} 51... Bc4 {[%clk 0:01:50.1]} 52.
Bc7 {[%clk 0:00:19.2]} 52... Rxa3 {[%clk 0:01:48.4]} 53. Rc6 {[%clk 0:00:20.2]}
53... Be6 {[%clk 0:01:47.4]} 54. Rb6 {[%clk 0:00:18.6]} 54... b4 {[%clk
0:01:45.1]} 55. Rb5 {[%clk 0:00:19.5]} 55... Ra2+ {[%clk 0:01:46]} 56. Kg3
{[%clk 0:00:20.4]} 56... b3 {[%clk 0:01:38]} 57. Bxa5 {[%clk 0:00:20.5]} 57...
b2 {[%clk 0:01:39.6]} 58. Bc3 {[%clk 0:00:12.5]} 58... Ra3 {[%clk 0:01:40.7]}
59. Rxb2 {[%clk 0:00:14.1]} 59... Rxc3+ {[%clk 0:01:42.2]} 60. Kh4 {[%clk
0:00:16]} 60... Kxe5 {[%clk 0:01:43.7]} 61. Re2+ {[%clk 0:00:17]} 61... Kf6
{[%clk 0:01:44.6]} 62. Rf2+ {[%clk 0:00:17.8]} 62... Bf5 {[%clk 0:01:46.2]} 63.
Rh2 {[%clk 0:00:16]} 63... Rh3+ {[%clk 0:01:46.7]} 64. Rxh3 {[%clk 0:00:17.2]}
64... Bxh3 {[%clk 0:01:48.6]} 65. Kxh3 {[%clk 0:00:19.1]} 65... Kf5 {[%clk
0:01:50.2]} 66. Kg3 {[%clk 0:00:19.9]} 66... Ke4 {[%clk 0:01:51.9]} 67. Kg4
{[%clk 0:00:18.3]} 67... f5+ {[%clk 0:01:53.1]} 68. Kg3 {[%clk 0:00:20]} 68...
Ke3 {[%clk 0:01:54.6]} 69. Kg2 {[%clk 0:00:21.6]} 69... f4 {[%clk 0:01:55.9]}
70. Kg1 {[%clk 0:00:20.9]} 70... Ke2 {[%clk 0:01:57.2]} 71. Kg2 {[%clk
0:00:22.4]} 71... f3+ {[%clk 0:01:59.1]} 0-1

[Event "*** Titled Tuesday Blitz"]
[Site "Chess.com"]
[Date "2019.03.05"]
[Round "3"]
[White "ChessicallyInclined"]
[Black "nikitakhoroshev"]
[Result "0-1"]
[WhiteElo "2412"]
[BlackElo "2608"]
[TimeControl "180+2"]
[EndTime "13:43:00 PST"]
[Termination "nikitakhoroshev won by resignation"]

1. d4 {[%clk 0:03:01.9]} 1... Nf6 {[%clk 0:02:59]} 2. c4 {[%clk 0:03:03.1]} 2...
e6 {[%clk 0:03:00.1]} 3. Nc3 {[%clk 0:03:04.3]} 3... Bb4 {[%clk 0:03:00.4]} 4.
e3 {[%clk 0:03:05.5]} 4... O-O {[%clk 0:03:00.6]} 5. Ne2 {[%clk 0:03:06]} 5...
d5 {[%clk 0:03:01.6]} 6. a3 {[%clk 0:03:06.7]} 6... Bxc3+ {[%clk 0:03:00.9]} 7.
Nxc3 {[%clk 0:03:07.6]} 7... b6 {[%clk 0:03:02]} 8. Qf3 {[%clk 0:03:05]} 8...
Bb7 {[%clk 0:03:02.3]} 9. g4 {[%clk 0:03:05.4]} 9... Qc8 {[%clk 0:02:59.3]} 10.
Bg2 {[%clk 0:02:47.2]} 10... c5 {[%clk 0:02:50]} 11. g5 {[%clk 0:02:45.1]} 11...
Ne4 {[%clk 0:02:50.2]} 12. cxd5 {[%clk 0:02:32.7]} 12... Nxc3 {[%clk 0:02:36.6]}
13. bxc3 {[%clk 0:02:33]} 13... cxd4 {[%clk 0:02:37.1]} 14. O-O {[%clk
0:02:18.6]} 14... Qxc3 {[%clk 0:02:18.4]} 15. Rb1 {[%clk 0:02:15]} 15... Bxd5
{[%clk 0:02:13.8]} 16. e4 {[%clk 0:02:10.2]} 16... Qxf3 {[%clk 0:02:11.2]} 17.
Bxf3 {[%clk 0:02:11.1]} 17... Bc4 {[%clk 0:02:10.4]} 18. Rd1 {[%clk 0:02:11.9]}
18... e5 {[%clk 0:02:05.3]} 19. Rb4 {[%clk 0:02:03.5]} 19... Be6 {[%clk
0:01:40.5]} 20. Bg2 {[%clk 0:02:03.9]} 20... Nc6 {[%clk 0:01:40.5]} 21. Rb2
{[%clk 0:02:03.9]} 21... Na5 {[%clk 0:01:32.1]} 22. f4 {[%clk 0:02:03.3]} 22...
f6 {[%clk 0:01:30.9]} 23. gxf6 {[%clk 0:01:59]} 23... gxf6 {[%clk 0:01:30.8]}
24. fxe5 {[%clk 0:01:58.3]} 24... fxe5 {[%clk 0:01:30.2]} 25. h3 {[%clk
0:01:55.6]} 25... Nc4 {[%clk 0:01:27.8]} 26. Re2 {[%clk 0:01:51]} 26... Rac8
{[%clk 0:01:27.1]} 27. Bf1 {[%clk 0:01:46.5]} 27... Nd6 {[%clk 0:01:18.4]} 28.
Bh6 {[%clk 0:01:38.5]} 28... Rf6 {[%clk 0:01:15.5]} 29. Rg2+ {[%clk 0:01:34.3]}
29... Rg6 {[%clk 0:01:14.8]} 30. Rxg6+ {[%clk 0:01:33]} 30... hxg6 {[%clk
0:01:16.7]} 31. Bg2 {[%clk 0:00:49.3]} 31... Rc3 {[%clk 0:01:10.4]} 32. Bd2
{[%clk 0:00:49.8]} 32... Rd3 {[%clk 0:00:59.4]} 33. Bf1 {[%clk 0:00:46.7]} 33...
Rg3+ {[%clk 0:00:49.8]} 34. Kh2 {[%clk 0:00:45.4]} 34... Rf3 {[%clk 0:00:42.8]}
35. Bb4 {[%clk 0:00:38.8]} 35... Nxe4 {[%clk 0:00:33.2]} 36. Bg2 {[%clk
0:00:39.9]} 36... Re3 {[%clk 0:00:33.2]} 37. Rf1 {[%clk 0:00:39]} 37... Bf5
{[%clk 0:00:33]} 38. Rc1 {[%clk 0:00:31.9]} 38... Nc3 {[%clk 0:00:33.3]} 39. h4
{[%clk 0:00:25]} 39... a5 {[%clk 0:00:32.6]} 40. Be7 {[%clk 0:00:22.2]} 40...
Re2 {[%clk 0:00:31.7]} 41. Kg3 {[%clk 0:00:13]} 41... Kf7 {[%clk 0:00:30.8]} 42.
Bg5 {[%clk 0:00:13.5]} 42... Rc2 {[%clk 0:00:30.3]} 43. Rf1 {[%clk 0:00:13.5]}
43... Ne2+ {[%clk 0:00:29.9]} 44. Kh2 {[%clk 0:00:13.2]} 44... Ke6 {[%clk
0:00:30.2]} 45. h5 {[%clk 0:00:14.2]} 45... gxh5 {[%clk 0:00:28.9]} 46. Rf2
{[%clk 0:00:15.7]} 46... Nf4 {[%clk 0:00:28.1]} 47. Rxc2 {[%clk 0:00:13]} 47...
Bxc2 {[%clk 0:00:28.6]} 48. Bf3 {[%clk 0:00:14.9]} 48... Kf5 {[%clk 0:00:27.6]}
49. Bd8 {[%clk 0:00:11.5]} 49... e4 {[%clk 0:00:27.7]} 50. Bh1 {[%clk
0:00:11.2]} 50... d3 {[%clk 0:00:27.1]} 0-1

[Event "*** Titled Tuesday Blitz"]
[Site "Chess.com"]
[Date "2019.03.05"]
[Round "3"]
[White "JoachimMouhamad"]
[Black "r31415"]
[Result "1-0"]
[WhiteElo "2323"]
[BlackElo "2346"]
[TimeControl "180+2"]
[EndTime "13:43:00 PST"]
[Termination "JoachimMouhamad won by resignation"]

1. e4 {[%clk 0:03:01.8]} 1... e5 {[%clk 0:03:01]} 2. Nf3 {[%clk 0:03:03.1]} 2...
Nc6 {[%clk 0:03:02.7]} 3. Bc4 {[%clk 0:03:04.6]} 3... Bc5 {[%clk 0:03:03.2]} 4.
O-O {[%clk 0:03:05.5]} 4... d6 {[%clk 0:03:03.6]} 5. c3 {[%clk 0:03:06.1]} 5...
Bg4 {[%clk 0:02:56.6]} 6. d3 {[%clk 0:02:47.6]} 6... Nf6 {[%clk 0:02:56.2]} 7.
Nbd2 {[%clk 0:02:48.4]} 7... O-O {[%clk 0:02:55.7]} 8. Re1 {[%clk 0:02:49]} 8...
a5 {[%clk 0:02:55]} 9. a4 {[%clk 0:02:43.6]} 9... Qb8 {[%clk 0:02:54.3]} 10. Nf1
{[%clk 0:02:39.9]} 10... Qa7 {[%clk 0:02:55]} 11. Be3 {[%clk 0:02:40.4]} 11...
Rad8 {[%clk 0:02:47.9]} 12. Bb5 {[%clk 0:02:38.3]} 12... d5 {[%clk 0:02:36]} 13.
Bxc5 {[%clk 0:02:28.3]} 13... Qxc5 {[%clk 0:02:36.3]} 14. exd5 {[%clk
0:02:20.8]} 14... Qxd5 {[%clk 0:02:12.7]} 15. Ne3 {[%clk 0:02:13]} 15... Qd6
{[%clk 0:01:57.1]} 16. Nxg4 {[%clk 0:02:13.2]} 16... Nxg4 {[%clk 0:01:57.9]} 17.
h3 {[%clk 0:02:13]} 17... Nf6 {[%clk 0:01:38]} 18. Bxc6 {[%clk 0:02:14.1]} 18...
bxc6 {[%clk 0:01:38.1]} 19. Nxe5 {[%clk 0:02:15.2]} 19... Rfe8 {[%clk
0:01:35.7]} 20. d4 {[%clk 0:02:11.9]} 20... c5 {[%clk 0:01:36.5]} 21. Qb3 {[%clk
0:02:12.8]} 21... Qd5 {[%clk 0:01:22.5]} 22. Qxd5 {[%clk 0:01:56.3]} 22... Rxd5
{[%clk 0:01:22.6]} 23. Nc6 {[%clk 0:01:49.4]} 23... Rxe1+ {[%clk 0:01:16.9]} 24.
Rxe1 {[%clk 0:01:51.3]} 24... Kf8 {[%clk 0:01:18]} 25. c4 {[%clk 0:01:46.2]}
25... Rd6 {[%clk 0:00:52.4]} 26. d5 {[%clk 0:01:47.5]} 26... Nd7 {[%clk
0:00:53.9]} 27. b3 {[%clk 0:01:38.8]} 27... f6 {[%clk 0:00:40.4]} 28. Re7 {[%clk
0:01:22.7]} 28... Rxc6 {[%clk 0:00:28]} 29. Rxd7 {[%clk 0:01:24.1]} 29... Rb6
{[%clk 0:00:28.4]} 30. Rxc7 {[%clk 0:01:25.4]} 30... Rxb3 {[%clk 0:00:29.3]} 31.
Rxc5 {[%clk 0:01:27]} 31... Rb4 {[%clk 0:00:27.9]} 32. d6 {[%clk 0:01:22.4]}
32... Ke8 {[%clk 0:00:23.2]} 33. Rc7 {[%clk 0:01:22.5]} 33... Rxa4 {[%clk
0:00:23]} 34. c5 {[%clk 0:01:24]} 34... Rc4 {[%clk 0:00:05.2]} 35. c6 {[%clk
0:01:21.7]} 35... Kd8 {[%clk 0:00:05.6]} 36. Kh2 {[%clk 0:01:02.1]} 36... h5
{[%clk 0:00:07]} 37. g4 {[%clk 0:00:54.8]} 37... hxg4 {[%clk 0:00:08.1]} 38.
hxg4 {[%clk 0:00:56.2]} 38... a4 {[%clk 0:00:08.3]} 39. Kg3 {[%clk 0:00:50.3]}
39... a3 {[%clk 0:00:09.6]} 40. Rd7+ {[%clk 0:00:48.2]} 40... Kc8 {[%clk
0:00:10.3]} 41. Rc7+ {[%clk 0:00:48.9]} 41... Kd8 {[%clk 0:00:11.5]} 42. f3
{[%clk 0:00:43.9]} 42... g5 {[%clk 0:00:12.6]} 43. Rf7 {[%clk 0:00:35.3]} 43...
Rxc6 {[%clk 0:00:12.5]} 44. Rxf6 {[%clk 0:00:36.2]} 44... a2 {[%clk 0:00:12.9]}
45. Rf8+ {[%clk 0:00:37.4]} 45... Kd7 {[%clk 0:00:13.4]} 46. Ra8 {[%clk
0:00:38.9]} 46... Rc2 {[%clk 0:00:11.5]} 47. Ra6 {[%clk 0:00:38.8]} 47... Rd2
{[%clk 0:00:11.9]} 48. f4 {[%clk 0:00:38.8]} 48... Rd3+ {[%clk 0:00:11.9]} 49.
Kf2 {[%clk 0:00:40.2]} 49... gxf4 {[%clk 0:00:10]} 50. g5 {[%clk 0:00:34.7]}
50... Rh3 {[%clk 0:00:06.3]} 51. g6 {[%clk 0:00:35.2]} 51... Rg3 {[%clk
0:00:04.4]} 52. g7 {[%clk 0:00:36.7]} 52... Kd8 {[%clk 0:00:03.9]} 53. Rxa2
{[%clk 0:00:33.7]} 53... Rxg7 {[%clk 0:00:04.1]} 54. Ra8+ {[%clk 0:00:34.9]} 1-0

[Event "*** Titled Tuesday Blitz"]
[Site "Chess.com"]
[Date "2019.03.05"]
[Round "3"]
[White "Bad4life"]
[Black "Durarbayli"]
[Result "0-1"]
[WhiteElo "2490"]
[BlackElo "2769"]
[TimeControl "180+2"]
[EndTime "13:43:09 PST"]
[Termination "Durarbayli won by resignation"]

1. e4 {[%clk 0:03:01.9]} 1... e5 {[%clk 0:03:00.8]} 2. Nf3 {[%clk 0:03:01.9]}
2... Nc6 {[%clk 0:03:02]} 3. Bc4 {[%clk 0:03:02.2]} 3... Bc5 {[%clk 0:02:59.9]}
4. d3 {[%clk 0:03:03]} 4... a6 {[%clk 0:02:59.4]} 5. O-O {[%clk 0:03:04.5]} 5...
d6 {[%clk 0:02:59.2]} 6. a4 {[%clk 0:03:05.6]} 6... Nh6 {[%clk 0:02:58.4]} 7. c3
{[%clk 0:03:01.9]} 7... Ba7 {[%clk 0:02:53.2]} 8. Bg5 {[%clk 0:03:00.7]} 8...
Ne7 {[%clk 0:02:48]} 9. d4 {[%clk 0:02:57.8]} 9... exd4 {[%clk 0:02:43.8]} 10.
cxd4 {[%clk 0:02:56.6]} 10... Bg4 {[%clk 0:02:44.6]} 11. Nc3 {[%clk 0:02:49.7]}
11... Qd7 {[%clk 0:02:38.8]} 12. h3 {[%clk 0:02:37.8]} 12... Bh5 {[%clk
0:02:26.9]} 13. Ra3 {[%clk 0:02:26.2]} 13... f6 {[%clk 0:02:22.7]} 14. Bxh6
{[%clk 0:02:18.7]} 14... gxh6 {[%clk 0:02:24.6]} 15. Ne2 {[%clk 0:02:13.5]}
15... d5 {[%clk 0:01:31.8]} 16. exd5 {[%clk 0:02:04]} 16... O-O-O {[%clk
0:01:24.4]} 17. Nf4 {[%clk 0:01:59]} 17... Bf7 {[%clk 0:01:23.2]} 18. Qb3 {[%clk
0:01:41.6]} 18... Rhg8 {[%clk 0:00:52.4]} 19. Re1 {[%clk 0:01:21.2]} 19... Rde8
{[%clk 0:00:39.4]} 20. Raa1 {[%clk 0:01:01.8]} 20... Nf5 {[%clk 0:00:21]} 21.
Qd3 {[%clk 0:00:46.9]} 21... Nd6 {[%clk 0:00:18.9]} 22. Bb3 {[%clk 0:00:35.7]}
22... Bg6 {[%clk 0:00:20.1]} 23. Nxg6 {[%clk 0:00:23.4]} 23... hxg6 {[%clk
0:00:22]} 24. Rac1 {[%clk 0:00:21.5]} 24... g5 {[%clk 0:00:19.5]} 25. Re6 {[%clk
0:00:22.3]} 25... h5 {[%clk 0:00:13.7]} 26. Nd2 {[%clk 0:00:18.7]} 26... g4
{[%clk 0:00:13.5]} 27. h4 {[%clk 0:00:15.9]} 27... f5 {[%clk 0:00:14.9]} 28. g3
{[%clk 0:00:15.8]} 28... Kb8 {[%clk 0:00:15.9]} 29. a5 {[%clk 0:00:15.3]} 29...
f4 {[%clk 0:00:17.2]} 30. Qc2 {[%clk 0:00:10.8]} 30... fxg3 {[%clk 0:00:17.3]}
31. fxg3 {[%clk 0:00:11.7]} 31... Bxd4+ {[%clk 0:00:16.3]} 32. Kh2 {[%clk
0:00:13.4]} 32... Rgf8 {[%clk 0:00:17.5]} 33. Rf1 {[%clk 0:00:12.3]} 33... Rxf1
{[%clk 0:00:18.2]} 34. Nxf1 {[%clk 0:00:14.2]} 34... Rf8 {[%clk 0:00:19.8]} 35.
Ba4 {[%clk 0:00:11]} 35... Qf7 {[%clk 0:00:15.5]} 36. Re1 {[%clk 0:00:07.8]}
36... Qf2+ {[%clk 0:00:13.2]} 37. Qxf2 {[%clk 0:00:08.6]} 37... Rxf2+ {[%clk
0:00:15.1]} 38. Kh1 {[%clk 0:00:09.2]} 38... Rxb2 {[%clk 0:00:17]} 39. Be8
{[%clk 0:00:07.1]} 39... Nxe8 {[%clk 0:00:15]} 40. Rxe8+ {[%clk 0:00:08.7]}
40... Ka7 {[%clk 0:00:16.9]} 41. Rc8 {[%clk 0:00:05.8]} 41... Rb1 {[%clk
0:00:15.4]} 42. Kg2 {[%clk 0:00:06.6]} 42... Rb2+ {[%clk 0:00:17.1]} 43. Kh1
{[%clk 0:00:07.9]} 43... Rf2 {[%clk 0:00:18.3]} 44. Nh2 {[%clk 0:00:05.1]} 44...
Be5 {[%clk 0:00:19.2]} 45. Rh8 {[%clk 0:00:03.9]} 45... Bxg3 {[%clk 0:00:19.9]}
46. Rxh5 {[%clk 0:00:03.3]} 46... Rxh2+ {[%clk 0:00:20.9]} 47. Kg1 {[%clk
0:00:04.9]} 47... Rxh4 {[%clk 0:00:22]} 48. Rg5 {[%clk 0:00:04.8]} 48... Bd6
{[%clk 0:00:22.2]} 49. Kg2 {[%clk 0:00:05.9]} 49... g3 {[%clk 0:00:23.1]} 50.
Kf3 {[%clk 0:00:03.8]} 50... Ra4 {[%clk 0:00:24.4]} 51. Rg8 {[%clk 0:00:04.6]}
51... Ra3+ {[%clk 0:00:25.5]} 52. Kg2 {[%clk 0:00:06]} 52... Rxa5 {[%clk
0:00:27.4]} 53. Kh3 {[%clk 0:00:06.6]} 53... Rb5 {[%clk 0:00:28.3]} 54. Rg5
{[%clk 0:00:07.7]} 54... a5 {[%clk 0:00:29.7]} 55. Rf5 {[%clk 0:00:09.3]} 55...
a4 {[%clk 0:00:31]} 56. Rf1 {[%clk 0:00:11]} 56... Ra5 {[%clk 0:00:32.5]} 57.
Ra1 {[%clk 0:00:12.9]} 57... a3 {[%clk 0:00:33.8]} 58. Ra2 {[%clk 0:00:14.5]}
58... b5 {[%clk 0:00:34.3]} 59. Kg2 {[%clk 0:00:16]} 59... b4 {[%clk 0:00:35.8]}
60. Kh3 {[%clk 0:00:17.6]} 60... b3 {[%clk 0:00:37.2]} 61. Ra1 {[%clk
0:00:19.2]} 61... a2 {[%clk 0:00:38.6]} 62. Rd1 {[%clk 0:00:20.6]} 62... a1=Q
{[%clk 0:00:37.3]} 0-1

[Event "*** Titled Tuesday Blitz"]
[Site "Chess.com"]
[Date "2019.03.05"]
[Round "3"]
[White "FedaMaster"]
[Black "andrzej"]
[Result "0-1"]
[WhiteElo "2431"]
[BlackElo "2287"]
[TimeControl "180+2"]
[EndTime "13:43:20 PST"]
[Termination "andrzej won by checkmate"]

1. e4 {[%clk 0:03:00.8]} 1... c6 {[%clk 0:03:01.5]} 2. d4 {[%clk 0:03:01.8]}
2... d5 {[%clk 0:03:03.1]} 3. Nc3 {[%clk 0:03:03.3]} 3... dxe4 {[%clk
0:03:03.6]} 4. Nxe4 {[%clk 0:03:05.2]} 4... Nd7 {[%clk 0:03:05]} 5. Nf3 {[%clk
0:03:04.9]} 5... Ngf6 {[%clk 0:03:06]} 6. Neg5 {[%clk 0:03:06.2]} 6... e6 {[%clk
0:02:59.2]} 7. Bc4 {[%clk 0:03:05.5]} 7... Nb6 {[%clk 0:02:54.2]} 8. Bb3 {[%clk
0:03:06.4]} 8... Be7 {[%clk 0:02:42.2]} 9. Nxf7 {[%clk 0:03:05.8]} 9... Kxf7
{[%clk 0:02:40.8]} 10. Ng5+ {[%clk 0:03:06.7]} 10... Kf8 {[%clk 0:02:30.7]} 11.
O-O {[%clk 0:03:02.1]} 11... Qe8 {[%clk 0:01:59.4]} 12. Re1 {[%clk 0:03:00.8]}
12... Nbd5 {[%clk 0:01:44]} 13. c4 {[%clk 0:03:00.4]} 13... Nc7 {[%clk
0:01:44.3]} 14. Bf4 {[%clk 0:02:57.5]} 14... Qd8 {[%clk 0:01:29.8]} 15. Qf3
{[%clk 0:02:23.3]} 15... Kg8 {[%clk 0:01:19.1]} 16. Rad1 {[%clk 0:02:08.4]}
16... h6 {[%clk 0:01:06.6]} 17. Bxc7 {[%clk 0:01:48.2]} 17... Qxc7 {[%clk
0:01:07.1]} 18. Nxe6 {[%clk 0:01:49]} 18... Bxe6 {[%clk 0:00:55.4]} 19. Rxe6
{[%clk 0:01:50.9]} 19... Rd8 {[%clk 0:00:35.8]} 20. Rde1 {[%clk 0:01:49]} 20...
Bf8 {[%clk 0:00:32.1]} 21. d5 {[%clk 0:01:19.3]} 21... c5 {[%clk 0:00:21.2]} 22.
Bc2 {[%clk 0:01:18.8]} 22... Bd6 {[%clk 0:00:21.1]} 23. h3 {[%clk 0:01:10.7]}
23... Rf8 {[%clk 0:00:21.8]} 24. Bg6 {[%clk 0:01:10.5]} 24... h5 {[%clk
0:00:18.9]} 25. Qf5 {[%clk 0:01:06.4]} 25... Rh6 {[%clk 0:00:18.1]} 26. f4
{[%clk 0:00:22.1]} 26... h4 {[%clk 0:00:18.6]} 27. Kh1 {[%clk 0:00:18.5]} 27...
Qd8 {[%clk 0:00:08.6]} 28. R1e2 {[%clk 0:00:14.3]} 28... Qc7 {[%clk 0:00:09.4]}
29. a3 {[%clk 0:00:14.1]} 29... a6 {[%clk 0:00:10.7]} 30. Rf2 {[%clk 0:00:14.1]}
30... b6 {[%clk 0:00:11.5]} 31. b3 {[%clk 0:00:14.8]} 31... b5 {[%clk
0:00:12.7]} 32. Rf1 {[%clk 0:00:14.6]} 32... bxc4 {[%clk 0:00:11]} 33. bxc4
{[%clk 0:00:16.5]} 33... a5 {[%clk 0:00:12.4]} 34. Rb1 {[%clk 0:00:17]} 34...
Bxf4 {[%clk 0:00:11.1]} 35. Rbb6 {[%clk 0:00:16.9]} 35... Bg3 {[%clk 0:00:10]}
36. Rec6 {[%clk 0:00:16]} 36... Qf4 {[%clk 0:00:09.6]} 37. Qxf4 {[%clk
0:00:16.3]} 37... Bxf4 {[%clk 0:00:11.5]} 38. Bf5 {[%clk 0:00:17.3]} 38... Bg3
{[%clk 0:00:10.8]} 39. Rxc5 {[%clk 0:00:18]} 39... Nh5 {[%clk 0:00:09.8]} 40.
Be6+ {[%clk 0:00:18.1]} 40... Kh8 {[%clk 0:00:09.6]} 41. Rb1 {[%clk 0:00:19.5]}
41... Nf4 {[%clk 0:00:10.5]} 42. Bg4 {[%clk 0:00:19.5]} 42... Nd3 {[%clk
0:00:11.2]} 43. Rc8 {[%clk 0:00:19.6]} 43... Rxc8 {[%clk 0:00:10.9]} 44. Bxc8
{[%clk 0:00:21.5]} 44... Rf6 {[%clk 0:00:12]} 45. Bg4 {[%clk 0:00:20.9]} 45...
Bd6 {[%clk 0:00:11.6]} 46. Bf3 {[%clk 0:00:21.5]} 46... Bxa3 {[%clk 0:00:11.6]}
47. Rb8+ {[%clk 0:00:20.6]} 47... Rf8 {[%clk 0:00:10.5]} 48. Rb1 {[%clk
0:00:18.7]} 48... Bc5 {[%clk 0:00:10.7]} 49. Kh2 {[%clk 0:00:18.4]} 49... a4
{[%clk 0:00:11.8]} 50. Rb5 {[%clk 0:00:18.2]} 50... Bd6+ {[%clk 0:00:12.6]} 51.
g3 {[%clk 0:00:19.4]} 51... Rxf3 {[%clk 0:00:11.5]} 52. Rb6 {[%clk 0:00:18.9]}
52... hxg3+ {[%clk 0:00:11.8]} 53. Kg2 {[%clk 0:00:20]} 53... Rf2+ {[%clk
0:00:13.4]} 54. Kg1 {[%clk 0:00:21.5]} 54... Bc5 {[%clk 0:00:12.9]} 55. Rb8+
{[%clk 0:00:22.4]} 55... Kh7 {[%clk 0:00:14.4]} 56. Rc8 {[%clk 0:00:23.9]} 56...
Rf8+ {[%clk 0:00:13.3]} 57. Rxc5 {[%clk 0:00:23.7]} 57... Nxc5 {[%clk
0:00:15.2]} 58. Kg2 {[%clk 0:00:24.7]} 58... a3 {[%clk 0:00:14.6]} 59. Kxg3
{[%clk 0:00:26.6]} 59... a2 {[%clk 0:00:16]} 60. Kg4 {[%clk 0:00:27.8]} 60...
a1=Q {[%clk 0:00:17.3]} 61. Kh5 {[%clk 0:00:29.7]} 61... Qe5+ {[%clk 0:00:17.7]}
62. Kh4 {[%clk 0:00:30.7]} 62... Qf4+ {[%clk 0:00:18.6]} 63. Kh5 {[%clk
0:00:31.8]} 63... Rf5# {[%clk 0:00:20.2]} 0-1